bitfinex-derivatives/quotes_SOLF0:USTF0_20251219
["timestamp","ask_amount","ask_price","bid_price","bid_amount"]
[1766156802384,0.05278643,125.93,125.84,3.31]
[1766156802681,111.2166,125.94,125.84,3.31]
[1766156803387,175.30536177,125.97,125.79,157.5034]
[1766156803388,0.00443354,125.9,125.88,3.36139745]
[1766156803680,111.1762,125.99,125.88,3.31]
[1766156803681,7.1469,125.99,125.88,3.31]
[1766156804474,0.05101249,125.95,125.92,0.05525108]
[1766156809284,7.20001249,125.95,125.87,3.31]
[1766156809587,7.149,125.95,125.87,3.31]
[1766156809795,112.47401872,126.03,125.89,3.31]
[1766156809993,111.1434,126.02,125.9,3.31]
[1766156810202,0.05999914,125.97,125.95,0.05167291]
[1766156810388,0.05759567,125.97,125.95,0.05167291]
[1766156811784,0.05759567,125.97,125.95,0.00167291]
[1766156812992,7.20549567,125.97,125.95,0.00167291]
[1766156813593,0.05759567,125.97,125.95,0.00167291]
[1766156813995,46.9,126.0,125.95,0.00167291]
[1766156815089,0.05941651,125.99,125.95,0.00167291]
[1766156818191,0.05941651,125.99,125.95,3.31167291]
[1766156820401,1.33221872,126.03,125.95,3.31167291]
[1766156820600,46.88,126.04,125.95,3.31]
[1766156821304,0.05613512,126.01,125.98,0.05238852]
[1766156821501,7.1424,126.07,125.98,3.36238852]
[1766156821693,111.0981,126.08,125.98,3.31]
[1766156822005,111.1084,126.06,125.93,3.31]
[1766156822505,111.1084,126.06,125.98,0.0564768]
[1766156822506,0.05541186,126.01,125.98,0.0564768]
[1766156822807,0.05541186,126.01,125.98,0.06017886]
[1766156825408,7.1435,126.05,125.98,0.06017886]
[1766156826007,7.1439,126.04,125.98,0.06017886]
[1766156826211,112.45947161,126.1,125.96,3.31]
[1766156826504,0.05367816,126.04,126.01,0.05044425]
[1766156826694,0.05367816,126.04,125.93,3.26]
[1766156826898,1.35333414,126.13,125.93,3.26]
[1766156826899,111.1065,126.07,125.94,3.26]
[1766156827303,159.34802643,126.09,125.96,3.26]
[1766156827507,46.88,126.09,125.96,3.26]
[1766156827716,0.05853147,126.04,126.01,0.05451902]
[1766156827904,0.05853147,126.04,126.01,0.0550343]
[1766156831002,54.0012,126.09,126.01,3.3150343]
[1766156831204,157.9457,126.09,125.97,3.26]
[1766156831615,7.1422,126.07,125.98,3.26]
[1766156832109,0.05621297,126.04,126.01,0.05858061]
[1766156832615,54.0012,126.09,126.01,0.05858061]
[1766156832813,46.86,126.09,126.0,3.26]
[1766156833711,46.86,126.09,126.03,0.0585807]
[1766156833915,7.20054271,126.07,125.96,3.26]
[1766156834211,111.0905,126.08,125.96,3.26]
[1766156834914,0.05073936,126.03,126.01,0.05122719]
[1766156835116,0.06047307,126.03,126.01,0.05122719]
[1766156835313,46.86,126.09,126.01,3.31122719]
[1766156835615,46.86,126.09,126.01,3.26]
[1766156835815,7.1417,126.08,126.01,3.26]
[1766156836513,7.1417,126.08,126.03,0.05039786]
[1766156837106,18.56759591,126.13,126.03,3.31039786]
[1766156837107,1.35333414,126.13,126.03,3.31039786]
[1766156837303,1.35333414,126.13,126.07,0.05670414]
[1766156837808,7.1399,126.11,126.07,0.05670414]
[1766156838116,1.35333414,126.13,126.07,0.05670414]
[1766156838614,111.0647,126.11,126.01,3.43]
[1766156839520,0.058846,126.07,126.05,0.05038538]
[1766156840422,1.35333414,126.13,126.05,0.05038538]
[1766156840620,1.35333414,126.13,126.03,3.43]
[1766156840819,7.1394,126.12,126.03,3.43]
[1766156841215,112.40573414,126.13,126.06,0.05960905]
[1766156841407,111.0823,126.09,125.99,3.43]
[1766156841618,157.9423,126.09,125.99,3.43]
[1766156841912,46.86,126.09,125.99,3.43]
[1766156842119,46.86,126.09,126.0,3.43]
[1766156842326,159.26573414,126.13,126.03,3.48602472]
[1766156842514,159.26573414,126.13,126.03,3.43]
[1766156842915,7.1402,126.11,126.03,3.43]
[1766156843316,7.1402,126.11,126.06,0.0521067]
[1766156844714,55.35203414,126.13,126.06,0.0521067]
[1766156845719,7.1394,126.12,126.06,0.0521067]
[1766156846521,48.21333414,126.13,126.06,0.0521067]
[1766156846920,159.26313414,126.13,126.06,0.0521067]
[1766156847308,7.14,126.11,126.06,0.0521067]
[1766156847714,111.0643,126.11,126.06,0.0021067]
[1766156847919,111.0738,126.1,126.01,3.43]
[1766156848522,7.1417,126.08,126.01,3.43]
[1766156848721,111.0643,126.11,126.01,3.43]
[1766156848925,0.05188473,126.07,126.05,0.05501262]
[1766156849619,0.05188473,126.07,125.97,3.43]
[1766156849815,111.0845,126.09,125.97,3.43]
[1766156850017,7.1423,126.07,125.97,3.43]
[1766156850729,0.05412916,126.03,125.97,3.43]
[1766156851713,0.05412916,126.03,125.99,0.05358985]
[1766156852720,0.05412916,126.03,125.99,0.00358985]
[1766156853231,158.03332916,126.03,125.9,3.43]
[1766156853427,53.9845,126.03,125.93,3.43]
[1766156853827,46.84,126.03,125.93,3.43]
[1766156854021,7.1451,126.02,125.93,3.43]
[1766156854332,0.05779574,125.99,125.96,0.05768374]
[1766156855917,0.05779574,125.99,125.89,111.2556]
[1766156855918,0.05779574,125.99,125.89,3.46]
[1766156856119,111.1548,126.01,125.89,3.46]
[1766156857031,0.06089995,125.96,125.94,0.0532144]
[1766156857235,0.05757231,125.96,125.94,0.0532144]
[1766156860831,0.05757231,125.96,125.94,0.0032144]
[1766156861933,0.05757231,125.96,125.88,3.46]
[1766156862127,46.86,125.98,125.88,3.46]
[1766156862335,7.1484,125.96,125.88,3.46]
[1766156862925,54.0076,125.98,125.91,0.05147125]
[1766156863132,0.05322856,125.96,125.91,0.05147125]
[1766156866336,0.00322856,125.96,125.91,3.51147125]
[1766156866530,111.1406,126.03,125.91,3.51147125]
[1766156866531,4.30779226,126.01,125.93,3.46]
[1766156867028,11.45339226,126.01,125.93,3.46]
[1766156867734,0.05555046,125.98,125.96,0.05465501]
[1766156872038,0.05555046,125.98,125.9,3.46]
[1766156872238,4.30779226,125.99,125.9,3.46]
[1766156872634,7.1468,125.99,125.9,3.46]
[1766156873038,7.1468,125.99,125.89,11.45989226]
[1766156873039,0.05508603,125.96,125.93,0.05136604]
[1766156875036,11.45369226,126.01,125.93,3.51136604]
[1766156875335,4.30779226,126.03,125.95,3.46]
[1766156875942,0.05058414,126.0,125.98,0.05236557]
[1766156876144,0.05058414,126.0,125.98,0.00236557]
[1766156877539,0.05058414,126.0,125.92,7.76779226]
[1766156877834,4.30779226,126.01,125.92,3.46]
[1766156878642,7.1473,125.98,125.92,3.46]
[1766156878841,7.20606143,125.98,125.95,0.05668015]
[1766156879342,7.20606143,125.98,125.9,3.46]
[1766156879542,7.1473,125.98,125.9,3.46]
[1766156880536,0.05853806,125.95,125.93,0.05241243]
[1766156880731,115.57433032,125.95,125.83,3.46]
[1766156880928,4.30779226,125.93,125.85,3.46]
[1766156881141,7.1509,125.92,125.85,3.46]
[1766156881443,111.2495,125.9,125.79,3.46]
[1766156881631,111.2582,125.89,125.79,3.46]
[1766156881832,0.0527189,125.85,125.83,0.05404498]
[1766156882239,0.0027189,125.85,125.83,0.00404498]
[1766156882643,111.2114,125.95,125.84,3.46]
[1766156882939,111.2145,125.94,125.84,3.46]
[1766156883649,0.05156817,125.9,125.88,0.05868765]
[1766156883847,0.05726746,125.9,125.88,0.05868765]
[1766156884640,46.88,125.95,125.88,0.05868765]
[1766156885342,121.73993067,126.02,125.88,3.47868765]
[1766156885541,0.00465491,125.93,125.88,3.42]
[1766156886543,0.00465491,125.93,125.9,3.42]
[1766156886748,0.00123819,125.93,125.9,3.42]
[1766156888145,0.00123819,125.93,125.89,0.05855087]
[1766156890441,7.1515,125.91,125.83,46.84]
[1766156890747,7.1515,125.91,125.83,50.26]
[1766156890950,7.1515,125.91,125.83,3.42]
[1766156891649,0.05744845,125.88,125.86,0.05682133]
[1766156892348,46.9,125.94,125.86,3.47682133]
[1766156892658,46.9,125.94,125.86,3.42]
[1766156893046,54.0496,125.94,125.86,3.42]
[1766156893248,0.06034683,125.91,125.89,0.05209548]
[1766156894840,0.06034683,125.91,125.89,0.00209548]
[1766156895040,1.64034683,125.91,125.8,3.42]
[1766156895251,7.1498,125.94,125.84,3.42]
[1766156895647,111.2242,125.93,125.82,3.42]
[1766156896154,0.05598559,125.89,125.86,0.05117116]
[1766156897149,46.9,125.95,125.86,3.47117116]
[1766156897359,54.0492,125.95,125.86,3.42]
[1766156897749,46.9,125.95,125.86,3.42]
[1766156898057,0.06073226,125.92,125.89,0.05179449]
[1766156898248,0.00073226,125.92,125.89,0.05179449]
[1766156898445,24.23061805,125.99,125.89,3.31179449]
[1766156898649,46.9,126.0,125.89,3.26]
[1766156898857,7.1468,125.99,125.89,3.26]
[1766156899347,7.1468,125.99,125.86,111.2819]
[1766156899348,0.05182198,125.95,125.86,3.26]
[1766156899654,7.1491,125.95,125.86,3.26]
[1766156900245,111.208,125.95,125.86,3.26]
[1766156900553,0.05122913,125.92,125.83,50.12]
[1766156900759,46.9,125.94,125.83,50.12]
[1766156901452,0.0561177,125.9,125.87,0.05608346]
[1766156903556,46.9,125.98,125.87,3.31608346]
[1766156903748,46.9,125.98,125.88,3.26]
[1766156904346,0.05817438,125.94,125.92,0.05590491]
[1766156904752,46.9,125.98,125.92,0.05590491]
[1766156905155,7.1453,126.02,125.92,3.31590491]
[1766156905366,7.1453,126.02,125.92,3.26]
[1766156905670,0.05500245,125.98,125.96,0.05484836]
[1766156907755,46.9,126.03,125.96,3.31484836]
[1766156907951,23.58921154,126.07,125.96,3.31484836]
[1766156908152,7.1439,126.04,125.96,3.26]
[1766156908449,111.1283,126.04,125.93,3.26]
[1766156908759,0.05073756,126.0,125.97,0.00224257]
[1766156909753,46.9,126.04,125.97,0.00224257]
[1766156910161,111.07,126.11,125.97,3.26224257]
[1766156910356,181.20192981,126.11,125.97,3.26]
[1766156910551,111.0908,126.08,125.97,3.26]
[1766156910754,0.0606421,126.04,126.01,0.05414731]
[1766156912958,0.0606421,126.04,126.01,0.00414731]
[1766156913167,0.0606421,126.04,125.97,3.26]
[1766156913362,0.0606421,126.04,125.94,3.26]
[1766156913558,157.9904,126.06,125.94,3.26]
[1766156914062,0.05370768,126.01,125.99,0.05356372]
[1766156914264,0.05734515,126.01,125.99,0.00356372]
[1766156915866,46.88,126.06,125.99,0.00356372]
[1766156916775,0.05145431,126.04,125.99,0.00356372]
[1766156917975,7.1447,126.03,125.99,0.00356372]
[1766156919070,7.1447,126.03,125.93,3.16]
[1766156919978,0.05016083,125.99,125.97,0.06013952]
[1766156920177,0.05069167,125.99,125.97,0.06032719]
[1766156920571,0.00069167,125.99,125.97,3.22032719]
[1766156920771,7.1438,126.04,125.97,3.22032719]
[1766156920973,46.88,126.06,125.97,3.22032719]
[1766156921172,46.88,126.06,125.97,3.16]
[1766156921479,134.30202981,126.11,125.97,3.16]
[1766156921673,113.78574954,126.13,125.99,3.16]
[1766156921868,112.40493414,126.13,126.03,3.21364267]
[1766156922175,112.40493414,126.13,126.03,3.16]
[1766156922775,0.05297422,126.09,126.07,0.05510997]
[1766156922969,0.05297422,126.09,126.03,3.16]
[1766156923273,7.19417422,126.09,125.99,3.16]
[1766156923472,111.0583,126.12,125.99,3.16]
[1766156923872,0.05052182,126.07,126.04,0.0579383]
[1766156924073,0.05052182,126.07,126.04,0.05400323]
[1766156925479,0.05052182,126.07,126.04,0.00400323]
[1766156925675,0.05052182,126.07,125.98,3.16]
[1766156925875,111.0754,126.1,125.98,3.16]
[1766156926475,7.1412,126.09,125.98,3.16]
[1766156926674,0.05376249,126.05,126.02,0.05464491]
[1766156927987,111.0583,126.12,126.02,0.05464491]
[1766156928283,111.0583,126.12,126.0,3.16]
[1766156928284,111.0656,126.11,126.0,3.16]
[1766156928475,111.0583,126.12,126.0,3.16]
[1766156928674,111.0645,126.11,126.0,3.16]
[1766156928875,0.05172027,126.07,126.04,0.05971097]
[1766156930177,0.05172027,126.07,126.0,3.16]
[1766156931386,0.05172027,126.07,126.02,3.21808114]
[1766156931587,0.05044673,126.06,126.02,3.21808114]
[1766156931786,0.05044673,126.06,126.03,0.05739899]
[1766156932378,8.49233414,126.13,126.03,3.21739899]
[1766156932582,8.49233414,126.13,126.03,3.16]
[1766156933086,1.35333414,126.13,126.03,3.16]
[1766156933285,112.40303414,126.13,126.03,3.16]
[1766156933588,0.0571056,126.09,126.03,3.16]
[1766156934392,0.0571056,126.09,126.05,0.06080763]
[1766156935698,0.0571056,126.09,126.05,0.00080763]
[1766156938793,0.0571056,126.09,126.05,3.16080763]
[1766156938996,1.35333414,126.13,126.05,3.16080763]
[1766156939195,1.35333414,126.13,126.05,3.16]
[1766156939394,8.49213414,126.13,126.05,3.16]
[1766156939885,0.05078496,126.1,126.08,0.05982986]
[1766156942700,1.35333414,126.13,126.08,0.05982986]
[1766156942892,1.35333414,126.13,126.08,3.21982986]
[1766156943094,7.1368,126.17,126.08,3.21982986]
[1766156943301,7.1368,126.17,126.08,3.16]
[1766156943704,0.05641322,126.14,126.11,0.0508539]
[1766156944504,0.05641322,126.14,126.11,0.0008539]
[1766156945106,0.05641322,126.14,126.05,3.38]
[1766156945296,111.0233,126.16,126.05,3.38]
[1766156945500,7.1393,126.12,126.05,3.38]
[1766156945897,0.05695583,126.1,126.07,0.05558822]
[1766156946395,111.0233,126.16,126.07,0.05558822]
[1766156946605,111.0233,126.16,126.05,3.38]
[1766156947104,111.0165,126.17,126.05,3.38]
[1766156947295,0.00479247,126.12,126.1,0.05013886]
[1766156947598,46.84,126.18,126.07,3.38]
[1766156947902,111.0115,126.17,126.07,3.38]
[1766156948290,0.05766337,126.13,126.11,0.05508035]
[1766156948605,0.05803052,126.13,126.11,0.05508035]
[1766156949301,0.05803052,126.13,126.04,3.38]
[1766156949602,111.034,126.15,126.04,3.38]
[1766156949798,7.1384,126.14,126.04,3.38]
[1766156950194,0.06108027,126.1,126.08,0.05077845]
[1766156950391,0.06108027,126.1,126.08,0.00077845]
[1766156950597,0.06108027,126.1,126.04,3.38]
[1766156951106,0.06108027,126.1,126.01,3.38]
[1766156951403,111.0494,126.13,126.01,3.38]
[1766156951404,111.0569,126.12,126.01,3.38]
[1766156951604,0.05212317,126.08,126.05,0.05631163]
[1766156954713,0.05212317,126.08,125.97,3.38]
[1766156955006,157.9172,126.1,125.97,3.38]
[1766156955194,53.9806,126.1,125.99,3.38]
[1766156955399,157.8894,126.13,126.0,3.38]
[1766156955999,0.05743079,126.08,126.05,0.05202473]
[1766156956200,0.05743079,126.08,126.05,0.05587579]
[1766156959910,0.05743079,126.08,126.0,3.38]
[1766156960205,111.0748,126.1,126.0,3.38]
[1766156960406,111.0612,126.12,126.0,3.38]
[1766156960909,0.05141771,126.07,126.05,0.05060937]
[1766156961108,0.05779716,126.07,126.05,0.05060937]
[1766156961311,0.05779716,126.07,125.98,3.19]
[1766156961506,46.84,126.08,125.98,3.19]
[1766156962301,0.05040991,126.04,126.02,0.05973093]
[1766156962503,0.05040991,126.04,125.98,3.19]
[1766156963602,0.05040991,126.04,126.0,0.05804515]
[1766156964708,7.19470991,126.04,125.95,3.19]
[1766156964902,111.1286,126.04,125.92,3.19]
[1766156965103,157.9757,126.03,125.92,3.19]
[1766156965299,111.1046,126.07,125.92,3.19]
[1766156965504,46.84,126.05,125.93,3.19]
[1766156965803,0.00087834,126.0,125.98,3.24020452]
[1766156966107,46.84,126.07,125.98,3.19]
[1766156966709,111.0561,126.12,125.99,3.19]
[1766156966908,46.84,126.11,126.01,3.19]
[1766156967704,46.84,126.11,125.98,49.99]
[1766156967705,111.0754,126.1,125.98,49.99]
[1766156968008,0.05566545,126.05,126.03,0.0584143]
[1766156968218,0.05564908,126.05,126.03,0.0584143]
[1766156970326,7.1394,126.12,126.03,3.2484143]
[1766156970531,53.9994,126.12,126.03,3.19]
[1766156971411,0.05715322,126.09,126.06,0.05034459]
[1766156972715,1.32900392,126.15,126.06,3.24034459]
[1766156972923,1.38002141,126.2,126.06,3.19]
[1766156973111,157.8502,126.18,126.06,3.19]
[1766156973420,53.9762,126.18,126.07,3.19]
[1766156973717,0.05894218,126.14,126.11,0.05305674]
[1766156975313,0.05894218,126.14,126.07,3.19]
[1766156975722,0.05894218,126.14,126.03,50.1]
[1766156976021,111.0235,126.16,126.04,3.3]
[1766156976319,0.05281967,126.11,126.09,0.0511229]
[1766156976526,0.05375175,126.11,126.09,0.0511229]
[1766156977822,0.05375175,126.11,126.04,3.3]
[1766156978925,0.05375175,126.11,126.06,0.05016638]
[1766156980235,0.05375175,126.11,126.06,3.35016638]
[1766156980417,112.37292141,126.2,126.06,3.35016638]
[1766156980418,111.0075,126.18,126.06,3.35016638]
[1766156980619,157.8475,126.18,126.06,3.3]
[1766156980928,164.9837,126.18,126.06,3.3]
[1766156981119,53.9762,126.18,126.06,3.3]
[1766156981524,0.06036032,126.13,126.11,0.05946417]
[1766156981728,0.05959437,126.13,126.11,0.05946417]
[1766156981925,46.84,126.18,126.11,3.35946417]
[1766156982134,7.135,126.2,126.11,3.35946417]
[1766156982426,7.135,126.2,126.11,3.3]
[1766156983017,0.05301193,126.17,126.08,3.3]
[1766156983224,110.9878,126.2,126.08,3.3]
[1766156983429,110.979,126.21,126.09,3.3]
[1766156983724,7.1355,126.19,126.09,3.3]
[1766156984115,0.05021488,126.15,126.13,0.05357506]
[1766156984315,110.979,126.21,126.13,0.05357506]
[1766156984530,110.979,126.21,126.11,3.3]
[1766156985424,0.0595593,126.17,126.15,0.05805113]
[1766156985625,0.05631925,126.17,126.15,0.05479181]
[1766156985930,157.787,126.25,126.15,0.05479181]
[1766156986121,7.1339,126.22,126.13,3.3]
[1766156986737,110.9721,126.22,126.1,10.4403]
[1766156986923,0.05900198,126.17,126.15,0.05918098]
[1766156987124,0.05901216,126.17,126.15,0.05918098]
[1766156987626,0.05901216,126.17,126.11,3.3]
[1766156988231,0.05901216,126.17,126.08,10.4413]
[1766156988531,7.1361,126.18,126.09,3.3]
[1766156988732,0.05286973,126.15,126.12,0.05591539]
[1766156988934,157.8097,126.2,126.12,0.05591539]
[1766156988935,46.82,126.2,126.12,0.05591539]
[1766156989135,46.82,126.2,126.11,3.3]
[1766156989822,0.05410347,126.17,126.14,0.05923786]
[1766156990240,0.05410347,126.17,126.11,3.3]
[1766156991142,0.05410347,126.17,126.09,3.3]
[1766156991324,157.8099,126.2,126.12,0.06042402]
[1766156991523,7.1362,126.18,126.09,3.3]
[1766156992429,0.05290184,126.15,126.12,0.05105989]
[1766156992631,0.00290184,126.15,126.12,3.35105989]
[1766156994437,0.00290184,126.15,126.12,0.05105989]
[1766156994635,0.00290184,126.15,126.12,0.00105989]
[1766156996434,7.14070184,126.15,126.07,3.3]
[1766156996740,7.1378,126.15,126.07,3.3]
[1766156996941,7.1368,126.17,126.07,3.3]
[1766156997238,110.9873,126.2,126.07,3.3]
[1766156997437,0.05669379,126.15,126.12,0.05288489]
[1766156997634,0.05669379,126.15,126.12,0.06054953]
[1766156999139,110.9609,126.23,126.12,3.36054953]
[1766156999338,110.9609,126.23,126.12,3.3]
[1766156999633,110.9551,126.24,126.09,3.3]
[1766156999634,110.9762,126.21,126.09,3.3]
[1766156999839,110.9865,126.2,126.09,3.3]
[1766157000027,0.05742235,126.16,126.09,3.3]
[1766157001240,0.05742235,126.16,126.11,0.05841983]
[1766157002132,53.9548,126.2,126.11,3.35841983]
[1766157002333,46.82,126.2,126.11,3.3]
[1766157002741,7.1366,126.17,126.08,3.3]
[1766157003237,0.06000104,126.14,126.11,0.05090128]
[1766157003436,0.06000104,126.14,126.05,7.59625797]
[1766157003741,4.29625797,126.15,126.06,3.3]
[1766157004545,0.06062244,126.12,126.09,0.06035786]
[1766157004929,4.29625797,126.17,126.09,3.55035786]
[1766157005142,4.29625797,126.18,126.09,3.49]
[1766157005343,157.8073,126.2,126.09,3.49]
[1766157005940,53.955,126.2,126.09,3.49]
[1766157006156,0.05094854,126.16,126.13,0.0540091]
[1766157009244,7.18804854,126.16,126.13,0.0540091]
[1766157009441,0.05094854,126.16,126.05,7.1428]
[1766157009640,111.0226,126.16,126.06,3.49]
[1766157010442,0.05726606,126.12,126.1,0.06110388]
[1766157010944,0.05726606,126.12,126.06,3.49]
[1766157011842,0.05726606,126.12,126.08,0.05256832]
[1766157012647,111.0822,126.09,125.99,3.49]
[1766157012847,157.898,126.1,125.99,3.49]
[1766157013355,46.82,126.1,125.99,3.49]
[1766157013544,111.094,126.08,125.99,3.49]
[1766157013749,0.06000701,126.05,125.99,3.49]
[1766157014840,0.06000701,126.05,126.01,0.05096645]
[1766157015437,0.06000701,126.05,126.01,3.54096645]
[1766157015643,7.01e-06,126.05,126.01,3.54096645]
[1766157018546,7.1398,126.12,126.01,3.54096645]
[1766157018740,7.1398,126.12,126.01,3.49]
[1766157018935,111.0513,126.13,126.01,3.49]
[1766157019142,7.1401,126.11,126.01,3.49]
[1766157019538,0.05256471,126.07,126.05,0.05714353]
[1766157021159,0.05256471,126.07,126.0,3.19]
[1766157021644,0.05256471,126.07,125.97,3.19]
[1766157021840,111.0946,126.08,125.97,3.19]
[1766157022036,7.1428,126.06,125.97,3.19]
[1766157022243,0.0513312,126.03,126.0,0.05240804]
[1766157022443,111.0682,126.11,126.0,3.24240804]
[1766157022644,46.84,126.09,126.0,3.19]
[1766157022948,7.1418,126.08,126.0,3.19]
[1766157023348,7.1424,126.07,126.0,3.19]
[1766157023552,0.05787988,126.05,126.02,0.05960217]
[1766157026149,46.84,126.09,126.02,3.24960217]
[1766157026455,111.0556,126.12,126.02,3.24960217]
[1766157026652,111.0556,126.12,126.02,3.19]
[1766157026948,7.1411,126.09,126.02,3.19]
[1766157027154,0.05393081,126.07,126.04,0.05773301]
[1766157027950,0.05393081,126.07,125.99,3.19]
[1766157028150,111.085,126.09,125.99,3.19]
[1766157028151,111.0923,126.08,125.99,3.19]
[1766157028447,157.9323,126.08,125.99,3.19]
[1766157028663,7.1425,126.07,125.99,3.19]
[1766157028852,0.05153377,126.04,126.02,0.05256588]
[1766157029048,0.05153377,126.04,126.02,0.00256588]
[1766157029852,7.19543377,126.04,126.02,0.00256588]
[1766157030253,0.05153377,126.04,125.96,3.19]
[1766157030552,111.1213,126.05,125.96,3.19]
[1766157030750,7.145,126.02,125.96,3.19]
[1766157031158,0.05727881,126.0,125.98,0.0553895]
[1766157032350,0.05727881,126.0,125.94,3.19]
[1766157032648,7.145,126.02,125.94,3.19]
[1766157033354,0.05705857,125.99,125.97,0.05877879]
[1766157033862,0.05705857,125.99,125.91,3.19]
[1766157034064,7.148,125.97,125.91,3.19]
[1766157034959,0.05368046,125.95,125.93,0.05323263]
[1766157035462,46.86,126.01,125.93,3.50323263]
[1766157035656,54.0059,126.01,125.93,3.45]
[1766157036060,46.86,126.01,125.93,3.45]
[1766157036260,46.86,126.01,125.96,0.05390683]
[1766157036764,157.9665,126.07,125.96,3.50390683]
[1766157036973,157.9665,126.07,125.96,3.45]
[1766157037266,0.0505173,126.03,126.0,0.06058134]
[1766157037563,0.0005173,126.03,126.0,0.06058134]
[1766157039371,0.0005173,126.03,126.0,3.51058134]
[1766157039865,0.0005173,126.03,126.0,0.06058134]
[1766157044072,0.0005173,126.03,126.0,3.51058134]
[1766157045269,0.0005173,126.03,126.0,0.06058134]
[1766157050169,0.0005173,126.03,126.0,3.51058134]
[1766157051582,0.0005173,126.03,126.0,0.06058134]
[1766157053173,0.0005173,126.03,126.0,3.51058134]
[1766157053577,111.0782,126.1,126.02,3.45]
[1766157053578,7.1405,126.1,126.02,3.45]
[1766157053776,114.3047,126.13,126.02,3.45]
[1766157054676,0.0531052,126.09,126.06,0.05191201]
[1766157055979,7.1942052,126.09,126.06,0.05191201]
[1766157056371,0.0531052,126.09,126.06,0.00191201]
[1766157056572,3.2531052,126.09,126.06,0.00191201]
[1766157057283,7.1417,126.08,126.06,0.00191201]
[1766157063074,50.1131052,126.09,126.06,0.00191201]
[1766157064284,0.0531052,126.09,126.06,0.00191201]
[1766157066272,0.0031052,126.09,126.06,3.27191201]
[1766157067286,57.2485,126.14,126.06,3.27191201]
[1766157067287,46.86,126.14,126.06,3.27191201]
[1766157067487,46.86,126.14,126.06,3.27]
[1766157067886,3.25,126.15,126.06,3.27]
[1766157068290,0.06105003,126.12,126.09,0.05869694]
[1766157069182,0.00105003,126.12,126.09,3.32869694]
[1766157069385,4.63093008,126.19,126.09,3.32869694]
[1766157069585,4.63093008,126.19,126.09,3.27]
[1766157070392,4.63093008,126.19,126.13,0.05477269]
[1766157071292,0.05042973,126.17,126.13,0.05477269]
[1766157072681,0.00042973,126.17,126.13,3.32477269]
[1766157073194,10.5127,126.24,126.13,10.46307269]
[1766157073495,10.5127,126.24,126.14,3.27]
[1766157074085,3.38,126.24,126.18,0.05669631]
[1766157074288,50.22,126.25,126.18,3.32669631]
[1766157074897,3.38,126.28,126.18,3.32669631]
[1766157075194,0.00433766,126.24,126.22,0.0589884]
[1766157075394,3.38,126.31,126.22,3.3289884]
[1766157075581,50.22,126.32,126.22,3.27]
[1766157075786,3.38,126.31,126.22,3.27]
[1766157076407,0.00418115,126.28,126.25,3.32548985]
[1766157076584,3.38,126.34,126.25,3.27]
[1766157077399,3.38,126.37,126.27,3.27]
[1766157077596,3.38,126.37,126.31,0.05050555]
[1766157078596,10.294,126.4,126.31,0.05050555]
[1766157078798,3.17,126.4,126.34,0.05963331]
[1766157079904,3.17,126.4,126.28,50.25]
[1766157079905,3.17,126.38,126.28,50.25]
[1766157080099,3.17,126.38,126.28,3.49]
[1766157080298,3.17,126.38,126.29,3.49]
[1766157081001,0.0580394,126.35,126.32,0.00147514]
[1766157081198,3.17,126.34,126.22,3.49]
[1766157081406,3.17,126.32,126.23,3.49]
[1766157082395,3.17,126.35,126.26,3.54158811]
[1766157082597,3.17,126.36,126.26,3.49]
[1766157083205,3.17,126.33,126.23,3.49]
[1766157083505,0.05501991,126.29,126.27,0.05174578]
[1766157084391,0.05501991,126.29,126.23,3.49]
[1766157084897,3.17,126.37,126.25,3.49]
[1766157085403,3.17,126.37,126.26,3.49]
[1766157085797,0.05174578,126.33,126.3,0.06067843]
[1766157085999,0.05174578,126.33,126.3,0.00067843]
[1766157086200,0.05174578,126.33,126.26,3.49]